bitfinex-derivatives/quotes_ETHF0:USTF0_20241020
["timestamp","ask_amount","ask_price","bid_price","bid_amount"]
[1729465304639,3.2078,2749.1,2749.0,0.29105]
[1729465305347,1.7558,2749.3,2748.4,0.7278]
[1729465305545,1.7558,2749.3,2748.9,0.29106]
[1729465306047,1.7558,2749.3,2748.8,0.29107]
[1729465306048,2.04683,2749.3,2748.8,0.29107]
[1729465306936,2.04683,2749.3,2748.4,0.29112]
[1729465306937,1.7558,2749.3,2748.4,0.29112]
[1729465307136,2.04682,2749.3,2748.9,0.29106]
[1729465307747,1.7558,2749.3,2748.9,0.29106]
[1729465307939,2.04683,2749.3,2748.9,0.29106]
[1729465308134,1.7558,2749.3,2748.9,0.29106]
[1729465309142,1.7558,2749.3,2749.0,0.29105]
[1729465309340,2.04682,2749.3,2748.9,0.29106]
[1729465309542,1.7558,2749.3,2748.9,0.29106]
[1729465310040,1.7558,2749.3,2748.3,5.19872834]
[1729465310349,1.42799767,2749.8,2749.3,0.29102]
[1729465310540,1.7711,2749.7,2749.0,3.2078]
[1729465310740,1.7711,2749.7,2748.6,0.72772]
[1729465310741,1.7711,2749.7,2748.8,1.8202]
[1729465310946,3.49879,2749.6,2749.2,0.29103]
[1729465311144,2.06208,2749.7,2748.8,1.8202]
[1729465311447,1.7711,2749.7,2748.8,1.8202]
[1729465311755,1.7711,2749.7,2749.3,0.29101]
[1729465312053,1.7711,2749.7,2748.8,2.70599343]
[1729465312241,3.4988,2749.6,2748.9,0.29106]
[1729465312439,3.4988,2749.6,2749.2,0.29103]
[1729465312952,3.2078,2749.6,2748.8,1.97830343]
[1729465313253,0.291,2749.5,2749.1,0.29104]
[1729465313551,3.49879,2749.6,2749.2,0.29103]
[1729465313752,3.2078,2749.6,2748.7,4.9993]
[1729465313945,0.29102,2749.4,2749.0,0.29105]
[1729465314249,3.2078,2749.6,2749.1,0.29104]
[1729465314250,0.29101,2749.5,2749.1,0.29104]
[1729465314643,1.8244,2749.4,2749.1,0.29104]
[1729465315039,1.8244,2749.4,2748.7,4.9993]
[1729465315256,3.49883,2749.3,2748.9,0.29106]
[1729465315555,3.2078,2749.3,2748.7,3.2078]
[1729465315747,3.49883,2749.3,2748.7,3.2078]
[1729465315943,3.49883,2749.3,2748.8,0.29107]
[1729465316138,3.2078,2749.3,2748.7,3.2078]
[1729465316653,3.49883,2749.3,2748.9,0.29105]
[1729465316853,3.49883,2749.3,2748.7,3.2078]
[1729465317150,3.2078,2749.3,2748.7,3.2078]
[1729465317459,1.6623,2749.2,2748.8,0.29107]
[1729465317752,1.711,2749.1,2748.8,0.29107]
[1729465317944,1.711,2749.1,2748.7,3.2078]
[1729465318147,1.711,2749.1,2748.8,0.29107]
[1729465318646,1.711,2749.1,2748.9,0.29106]
[1729465319141,1.711,2749.1,2748.8,0.29107]
[1729465319344,1.711,2749.1,2748.7,3.2078]
[1729465319544,2.00204,2749.1,2748.7,3.49888]
[1729465319748,2.00204,2749.1,2748.7,3.2078]
[1729465319749,1.711,2749.1,2748.7,3.2078]
[1729465319952,1.711,2749.1,2748.9,0.29106]
[1729465320343,1.711,2749.1,2748.7,3.2078]
[1729465320344,1.711,2749.1,2749.0,0.29105]
[1729465322958,1.711,2749.1,2748.7,3.2078]
[1729465323251,1.711,2749.1,2749.0,0.29105]
[1729465323453,4.63579767,2749.3,2748.7,3.2078]
[1729465323647,4.63579767,2749.3,2749.2,0.29103]
[1729465323955,3.2078,2749.3,2749.2,0.29103]
[1729465324354,3.2078,2749.3,2749.1,0.29104]
[1729465324555,3.2078,2749.3,2748.7,3.2078]
[1729465324556,3.2078,2749.3,2749.0,0.29105]
[1729465324863,1.6893,2749.2,2749.0,0.29105]
[1729465325648,1.6893,2749.2,2749.1,0.29104]
[1729465326258,1.42799767,2749.5,2748.7,3.9355]
[1729465326259,1.42799767,2749.5,2748.9,0.72766]
[1729465326560,1.42799767,2749.5,2748.6,3.71661829]
[1729465326770,2.08462,2749.4,2748.6,3.71661829]
[1729465327051,1.7936,2749.4,2748.6,3.71661829]
[1729465327362,1.7936,2749.4,2749.0,0.29105]
[1729465327363,3.51261767,2749.4,2749.0,0.29105]
[1729465327655,3.22159767,2749.4,2749.1,0.29104]
[1729465328460,3.22159767,2749.4,2748.6,3.5602]
[1729465328763,3.22159767,2749.4,2748.2,0.29113]
[1729465328764,3.49889,2748.7,2748.2,0.29113]
[1729465328959,3.4417,2748.6,2748.2,0.29113]
[1729465329356,3.4417,2748.6,2748.3,0.29112]
[1729465329558,3.4417,2748.6,2748.0,3.2078]
[1729465329754,3.4417,2748.6,2748.4,0.29111]
[1729465329950,3.4417,2748.6,2748.0,3.2078]
[1729465330260,3.4417,2748.6,2748.5,0.29111]
[1729465330459,1.7188,2748.9,2748.5,0.2911]
[1729465330660,1.7188,2748.9,2748.5,0.29111]
[1729465331050,1.7188,2748.9,2748.0,3.2078]
[1729465331354,0.29108,2748.8,2748.0,3.2078]
[1729465332152,1.7188,2748.9,2748.0,3.2078]
[1729465332362,2.00986,2748.9,2748.5,0.2911]
[1729465332661,1.7188,2748.9,2748.6,0.29109]
[1729465332960,1.7188,2748.9,2748.0,3.2078]
[1729465333156,1.7188,2748.9,2748.6,0.2911]
[1729465333460,1.7188,2748.9,2748.0,3.2078]
[1729465333761,1.42799767,2748.9,2748.3,3.2078]
[1729465333959,5.11426172,2749.0,2748.4,5.0875]
[1729465333960,4.63579767,2749.0,2748.4,5.0875]
[1729465334160,3.2078,2749.0,2748.9,0.29106]
[1729465334357,4.63579767,2749.3,2748.6,0.72775]
[1729465334561,4.63650961,2749.3,2749.2,0.29103]
[1729465335058,3.2078,2749.3,2749.2,0.29103]
[1729465335358,1.42870961,2749.8,2749.2,6.8454]
[1729465335557,1.42870961,2749.8,2749.7,0.29098]
[1729465335965,1.42870961,2749.9,2749.8,0.29097]
[1729465336458,1.42870961,2749.9,2749.8,3.92777]
[1729465336658,4.63650961,2750.2,2749.8,3.6368]
[1729465336851,4.63650961,2750.2,2749.6,1.744]
[1729465337049,1.42870961,2750.1,2749.6,1.744]
[1729465337248,4.63650961,2750.2,2750.0,0.29094]
[1729465337453,3.23480961,2750.3,2750.0,0.29094]
[1729465338058,6.8438,2750.2,2749.5,1.7653]
[1729465338259,0.29098,2749.7,2749.0,3.49885]
[1729465338460,1.71972961,2749.4,2749.0,3.2078]
[1729465338761,1.42870961,2749.3,2749.0,3.2078]
[1729465339562,1.71973961,2749.2,2749.0,3.2078]
[1729465339763,1.42870961,2749.2,2749.0,3.2078]
[1729465339961,1.90646172,2749.4,2749.0,3.2078]
[1729465339962,1.42870961,2749.3,2749.0,3.49885]
[1729465340162,1.42870961,2749.3,2749.0,0.29105]
[1729465340362,1.42870961,2749.3,2748.9,0.29106]
[1729465340750,1.42870961,2749.3,2748.7,1.6925]
[1729465340952,1.42870961,2749.3,2748.9,0.29106]
[1729465341149,1.42870961,2749.2,2748.8,0.29107]
[1729465341564,1.42870961,2749.2,2748.9,0.29106]
[1729465342062,1.42870961,2749.2,2748.8,0.29107]
[1729465342755,1.42870961,2749.2,2748.9,0.29106]
[1729465343062,1.42870961,2749.2,2748.7,1.6925]
[1729465343456,1.42870961,2749.2,2749.1,0.29104]
[1729465344255,1.42870961,2749.2,2749.1,3.92864]
[1729465344466,1.42870961,2749.2,2749.1,4.04242023]
[1729465344867,1.42870961,2749.2,2749.1,3.92864]
[1729465345667,1.42870961,2749.2,2749.1,7.25021979]
[1729465346363,1.90646172,2749.3,2749.1,7.14121095]
[1729465346570,1.90646172,2749.3,2749.2,4.04240979]
[1729465346860,1.7745,2750.0,2749.8,0.29097]
[1729465347364,1.7745,2750.0,2749.3,1.7444]
[1729465347664,1.6699,2750.2,2749.4,4.04910131]
[1729465347966,1.6699,2750.2,2749.5,0.11376131]
[1729465348157,1.96083,2750.2,2749.9,0.29095]
[1729465348358,1.6699,2750.2,2749.4,3.93534]
[1729465348563,1.6699,2750.2,2750.1,0.29094]
[1729465348874,1.6699,2750.2,2750.0,0.29094]
[1729465349362,1.6699,2750.2,2749.4,3.2078]
[1729465349553,1.6699,2750.2,2749.9,0.29095]
[1729465349760,1.6699,2750.2,2750.0,0.29095]
[1729465350667,1.6699,2750.2,2749.4,3.2078]
[1729465350870,1.96083,2750.2,2749.3,1.7444]
[1729465351074,1.96083,2750.2,2749.7,0.29097]
[1729465351075,1.6787,2750.1,2749.7,0.29097]
[1729465351273,1.6787,2750.1,2749.3,1.90218897]
[1729465351274,0.29095,2750.0,2749.3,1.90218897]
[1729465351460,0.29095,2750.0,2749.3,1.7444]
[1729465351965,0.29095,2750.0,2749.6,0.29099]
[1729465352761,6.5619,2750.1,2749.7,0.29097]
[1729465352762,6.85284,2750.1,2749.7,0.29097]
[1729465352961,6.5619,2750.1,2749.3,1.7444]
[1729465353156,6.5619,2750.1,2749.7,0.29097]
[1729465353362,6.85284,2750.1,2749.7,0.29097]
[1729465353562,6.85284,2750.1,2749.6,0.29098]
[1729465353769,6.5619,2750.1,2749.6,0.29098]
[1729465353975,0.29095,2750.0,2749.6,0.29098]
[1729465354172,0.29095,2750.0,2749.3,1.7444]
[1729465354470,0.29095,2750.0,2749.5,0.291]
[1729465354672,8.75652121,2750.1,2749.6,0.29099]
[1729465356473,8.46558121,2750.1,2749.3,1.7444]
[1729465356771,8.75652121,2750.1,2749.6,0.29098]
[1729465357774,8.75652121,2750.1,2749.3,1.7444]
[1729465358164,8.75652121,2750.1,2749.6,0.29098]
[1729465358673,0.29095,2750.0,2749.4,0.29101]
[1729465358874,0.29095,2750.0,2749.5,0.29099]
[1729465359070,8.75653121,2750.1,2749.6,0.29099]
[1729465359268,0.29095,2750.0,2749.6,0.29099]
[1729465359471,8.46558121,2750.1,2749.6,0.29099]
[1729465359674,8.46558121,2750.1,2749.7,0.29098]
[1729465359976,3.58238121,2750.1,2749.8,0.29097]
[1729465360182,3.58238121,2750.1,2749.9,0.29095]
[1729465360568,3.58238121,2750.1,2749.8,0.29096]
[1729465360877,3.58238121,2750.1,2749.9,0.29095]
[1729465361072,3.58238121,2750.1,2749.3,1.7444]
[1729465361278,6.79018121,2750.1,2749.2,3.78748197]
[1729465361583,3.2078,2749.5,2748.8,3.2078]
[1729465361774,3.6017,2749.4,2749.0,0.29105]
[1729465361979,3.6017,2749.4,2748.8,3.36141223]
[1729465362179,3.6017,2749.4,2749.2,0.29103]
[1729465362477,3.6017,2749.4,2749.1,0.29104]
[1729465362678,3.6017,2749.4,2748.8,3.36141223]
[1729465362882,1.8041,2749.8,2749.7,0.29098]
[1729465363183,3.463,2749.8,2749.6,0.29098]
[1729465363767,3.463,2749.8,2749.6,0.29099]
[1729465363972,3.463,2749.8,2749.2,5.1582]
[1729465364173,3.463,2749.8,2749.7,0.29098]
[1729465365077,3.463,2749.8,2749.6,0.29099]
[1729465365285,3.463,2749.8,2749.7,0.29098]
[1729465367281,3.463,2749.8,2749.6,0.29098]
[1729465367476,3.463,2749.8,2749.4,3.2078]
[1729465367776,3.463,2749.8,2749.6,0.29098]
[1729465368577,3.463,2749.8,2749.4,3.2078]
[1729465368882,3.463,2749.8,2749.7,0.29098]
[1729465372382,1.6589,2749.8,2749.7,0.29098]
[1729465375985,1.6589,2749.8,2749.5,0.15281896]
[1729465376281,1.6894,2749.7,2749.6,0.29099]
[1729465377289,1.6589,2749.8,2749.3,3.2078]
[1729465377481,1.6589,2749.8,2749.7,0.29098]
[1729465379384,6.80088121,2750.2,2749.3,4.14756547]
[1729465379580,4.28328273,2751.2,2749.9,3.2078]
[1729465379581,1.90368121,2750.4,2749.9,3.2078]
[1729465379788,4.28328272,2750.7,2750.6,0.29088]
[1729465380089,1.721,2751.0,2750.9,0.29085]
[1729465380090,3.3905,2751.0,2750.9,0.29085]
[1729465380289,3.3905,2751.0,2750.5,3.93503]
[1729465380290,5.58740151,2751.3,2751.2,0.29082]
[1729465380291,3.2078,2751.3,2751.2,0.29082]
[1729465380588,3.2078,2751.3,2750.7,3.5076]
[1729465380589,6.8422,2751.3,2750.7,1.6718]
[1729465380784,1.90368121,2751.2,2751.1,0.29083]
[1729465381185,3.2078,2751.3,2751.2,0.29082]
[1729465381388,3.2078,2751.3,2751.1,0.29082]
[1729465381583,3.2078,2751.3,2750.8,1.7442]
[1729465381887,3.2078,2751.3,2751.2,0.29082]
[1729465382388,3.2078,2751.3,2751.1,0.29083]
[1729465383284,3.2078,2751.3,2750.8,1.7442]
[1729465383483,3.2078,2751.3,2751.1,0.29083]
[1729465384791,3.2078,2751.3,2751.2,0.29082]
[1729465384992,3.2078,2751.3,2751.0,0.29083]
[1729465385785,3.2078,2751.3,2751.1,0.29083]
[1729465387591,3.2078,2751.3,2750.8,1.7442]
[1729465387798,3.2078,2751.6,2751.0,3.2078]
[1729465388086,3.2078,2751.6,2751.5,0.29079]
[1729465388485,3.2078,2751.6,2751.5,3.92519]
[1729465390500,3.2078,2751.6,2751.5,4.08491054]
[1729465391383,2.37430663,2751.9,2751.7,0.29077]
[1729465391694,2.00523,2752.1,2751.7,0.29077]
[1729465393088,1.7145,2752.1,2751.7,0.29077]
[1729465394192,1.7145,2752.1,2751.7,0.29076]
[1729465394398,1.7145,2752.1,2751.9,0.29075]
[1729465394593,1.7145,2752.1,2751.8,0.29076]
[1729465395490,1.7145,2752.1,2751.7,0.29077]
[1729465395691,1.7145,2752.1,2751.8,0.29076]
[1729465395896,1.7145,2752.1,2751.6,1.8391]
[1729465396090,1.7145,2752.1,2751.7,0.29076]
[1729465396297,1.7145,2752.1,2751.8,0.29076]
[1729465398194,1.7145,2752.1,2751.6,1.8391]
[1729465398395,1.7145,2752.1,2752.0,0.29074]
[1729465398791,1.7145,2752.1,2751.9,0.29074]
[1729465399208,1.7145,2752.1,2751.7,1.7361]
[1729465399411,4.9736,2752.3,2752.2,0.29072]
[1729465400001,3.2078,2752.7,2752.5,0.29067]
[1729465400196,3.2078,2752.7,2752.6,0.29067]
[1729465400497,1.7408,2752.8,2752.7,0.29066]
[1729465400698,4.9051,2753.4,2752.7,3.2078]
[1729465400900,1.7408,2753.3,2753.1,0.29061]
[1729465401202,1.7408,2753.3,2752.7,3.2078]
[1729465401495,1.7408,2753.3,2752.8,0.29065]
[1729465401802,1.7408,2753.3,2752.7,3.2078]
[1729465401999,2.0314,2753.3,2752.8,0.29065]
[1729465402196,1.7408,2753.3,2752.8,0.29065]
[1729465402396,2.0314,2753.3,2752.7,0.29066]
[1729465402703,1.7408,2753.3,2752.4,3.2078]
[1729465402899,3.2078,2753.1,2752.3,3.4479]
[1729465403105,3.2078,2753.1,2752.3,0.2907]
[1729465403296,3.49843,2753.1,2752.4,0.29069]
[1729465403492,0.29063,2753.0,2752.4,0.29069]
[1729465403810,0.29064,2752.9,2752.3,0.2907]
[1729465404003,0.29064,2752.9,2752.1,3.36302307]
[1729465404004,1.7375,2752.9,2752.1,3.36302307]
[1729465404198,1.7375,2752.9,2752.4,0.29069]
[1729465404400,2.02814,2752.9,2752.3,0.2907]
[1729465405204,3.2078,2752.7,2752.3,0.2907]
[1729465405506,3.2078,2752.7,2752.1,0.15522307]
[1729465405693,3.49847,2752.7,2752.2,0.29071]
[1729465405898,3.2078,2752.7,2752.0,1.869]
[1729465406195,3.2078,2752.7,2752.0,2.02339673]
[1729465407104,3.2078,2752.7,2752.6,0.29067]
[1729465407702,0.29062,2753.2,2752.9,0.29064]
[1729465407703,3.2078,2753.0,2752.9,0.29064]
[1729465408001,1.7745,2753.1,2752.9,0.29064]
[1729465408204,1.7745,2753.1,2753.0,0.29063]
[1729465408408,3.2078,2753.5,2752.7,3.2078]
[1729465408600,3.2078,2753.5,2753.3,0.29059]
[1729465409006,3.4983,2753.6,2753.3,0.29059]
[1729465409908,3.4983,2753.6,2753.2,0.15544108]
[1729465410109,3.4983,2753.6,2753.3,0.29059]
[1729465410311,3.4983,2753.6,2753.1,3.4638]
[1729465410603,3.4983,2753.6,2753.5,0.29058]
[1729465410805,3.4983,2753.6,2753.1,3.4638]
[1729465410806,0.29051,2754.1,2753.6,0.29056]
[1729465411012,0.29051,2754.1,2753.1,3.4638]
[1729465411013,0.29056,2753.7,2753.2,0.29061]
[1729465411212,1.7913,2753.9,2753.1,3.4638]
[1729465411213,1.6687,2753.6,2753.1,3.4638]
[1729465411510,1.6687,2753.6,2753.4,0.29059]
[1729465411902,1.6687,2753.6,2753.4,0.29058]
[1729465412206,1.6687,2753.6,2753.3,0.2906]
[1729465412698,1.6687,2753.6,2753.1,3.4638]
[1729465412898,1.6687,2753.6,2753.2,0.29061]
[1729465413110,1.95927,2753.6,2753.2,0.29061]
[1729465413705,1.6687,2753.6,2753.2,0.29061]
[1729465413899,1.95928,2753.6,2753.2,0.29061]
[1729465414811,1.95928,2753.6,2753.3,0.2906]
[1729465415009,1.95928,2753.6,2753.2,0.2906]
[1729465415209,1.6687,2753.6,2753.1,0.29061]
[1729465415406,0.29059,2753.4,2753.1,0.29061]
[1729465415713,1.7276,2753.3,2753.2,0.29061]
[1729465416312,0.29056,2753.7,2753.4,0.29058]
[1729465416616,0.29057,2753.7,2753.3,0.29059]
[1729465416812,1.7276,2753.6,2753.3,0.29059]
[1729465417015,0.29059,2753.4,2753.1,0.29061]
[1729465417201,0.29059,2753.4,2753.1,0.29062]
[1729465417515,1.7486,2753.5,2753.2,0.29061]
[1729465417704,1.7486,2753.5,2752.9,3.36455243]
[1729465418104,2.03918,2753.5,2753.2,0.29061]
[1729465418313,1.7486,2753.5,2752.9,3.36455243]
[1729465418514,1.7486,2753.5,2751.8,1.17790389]
[1729465418515,4.9564,2753.5,2752.6,6.6878]
[1729465418705,6.7688,2753.5,2752.7,0.29065]
[1729465418907,0.29063,2753.0,2752.7,0.29065]
[1729465419216,0.29063,2753.0,2752.6,3.48]
[1729465419217,1.8034,2752.9,2752.8,0.29065]
[1729465421909,1.8034,2752.9,2752.6,3.6369869]
[1729465422108,1.8034,2752.9,2752.7,0.29066]
[1729465422309,1.8034,2752.9,2752.6,3.6369869]
[1729465422310,2.09404,2752.9,2752.6,0.1569869]
[1729465422507,2.09404,2752.9,2752.6,0.29067]
[1729465422908,2.09404,2752.9,2752.7,0.29066]
[1729465423105,2.09404,2752.9,2752.3,3.36486506]
[1729465423304,1.8034,2752.9,2752.6,0.29067]
[1729465423519,1.8034,2752.9,2752.8,0.29065]
[1729465424214,1.8034,2752.9,2752.7,0.29066]
[1729465424411,1.8034,2752.9,2752.8,0.29065]
[1729465425416,1.8034,2752.9,2752.4,0.29069]
[1729465425612,1.8034,2752.9,2752.7,0.29066]
[1729465425809,1.8034,2752.9,2752.5,0.11363351]
[1729465426010,0.29067,2752.6,2752.5,0.11363351]
[1729465426716,1.8034,2752.9,2752.5,0.11363351]
[1729465427119,1.8034,2752.9,2752.8,0.29065]
[1729465428317,3.2078,2753.2,2753.0,0.29062]
[1729465428519,3.2078,2754.1,2753.0,3.2078]
[1729465428723,1.71,2753.9,2753.5,0.29057]
[1729465428920,2.00054,2753.9,2753.5,0.29057]
[1729465429524,2.00054,2753.9,2753.1,3.477]
[1729465429525,3.2078,2753.8,2753.4,0.29059]
[1729465429918,3.2078,2753.8,2753.1,3.477]
[1729465430225,1.71,2753.9,2753.3,3.2078]
[1729465430433,1.71,2753.9,2753.8,0.29055]
[1729465431220,1.7081,2754.0,2753.9,0.29054]
[1729465431424,1.7081,2754.0,2753.8,0.29054]
[1729465431632,1.7706,2753.9,2753.7,0.29055]
[1729465432326,1.7706,2753.9,2753.3,3.2078]
[1729465432627,1.7706,2753.9,2753.5,0.29057]
[1729465433130,2.06114,2753.9,2753.5,0.29057]
[1729465433834,4.9784,2753.9,2753.1,3.63188622]
[1729465434014,0.29057,2753.6,2753.3,0.2906]
[1729465434317,1.8032,2753.5,2753.3,0.29059]
[1729465434921,2.09378,2753.5,2753.3,0.29059]
[1729465435127,1.8032,2753.5,2753.3,0.29059]
[1729465435528,2.09378,2753.5,2753.1,3.477]
[1729465435726,1.8032,2753.5,2753.1,3.477]
[1729465435926,1.8032,2753.5,2753.3,0.29059]
[1729465436721,1.8032,2753.5,2753.0,3.2078]
[1729465436925,1.7596,2753.4,2753.0,3.2078]
[1729465437234,0.29062,2753.1,2752.8,0.29065]
[1729465437431,1.7306,2753.0,2752.8,0.29065]
[1729465437735,1.7306,2753.0,2752.6,3.2078]
[1729465438024,1.7306,2753.0,2752.8,0.29064]
[1729465438732,1.7306,2753.0,2752.6,3.2078]
[1729465438733,1.7306,2753.0,2752.9,0.29064]
[1729465440033,1.7306,2753.0,2752.8,0.29065]
[1729465440329,2.02124,2753.0,2752.7,0.29066]
[1729465440514,1.7306,2753.0,2752.7,0.29066]
[1729465440715,2.03555,2752.9,2752.6,0.29067]
[1729465440915,1.7449,2752.9,2752.8,0.29065]
[1729465441720,1.7306,2753.0,2752.9,0.29064]
[1729465441920,3.2078,2753.3,2752.5,3.2078]
[1729465442119,4.9952,2753.3,2752.5,3.2078]
[1729465442326,0.29063,2753.1,2752.8,0.29065]
[1729465442830,1.41306713,2753.2,2753.0,0.29063]
[1729465443924,1.41306713,2753.2,2752.5,3.36694401]
[1729465444125,1.41306713,2753.2,2752.9,0.29063]
[1729465444327,1.7874,2753.3,2752.5,3.36694401]
[1729465444328,3.20046713,2753.3,2752.5,3.36694401]
[1729465444627,3.20046713,2753.3,2752.4,0.29069]
[1729465444628,3.49844,2753.0,2752.4,0.29069]
[1729465444819,3.2078,2753.0,2752.3,1.6866]
[1729465445022,1.7507,2752.9,2752.7,0.29066]
[1729465445224,1.7507,2752.9,2752.8,0.29065]
[1729465449034,1.7575,2753.2,2753.0,0.29063]
[1729465449232,3.3922,2753.2,2752.5,3.2078]
[1729465449433,5.58210663,2753.6,2753.0,0.29063]
[1729465449434,1.42569019,2753.1,2753.0,0.29063]
[1729465449728,4.63349019,2753.6,2753.5,0.29058]
[1729465449937,3.06039019,2753.7,2753.2,0.17894671]
[1729465450121,3.06039019,2753.7,2753.6,0.29057]
[1729465450733,3.06039019,2753.7,2753.5,0.29057]
[1729465450925,3.06039019,2753.7,2753.0,5.161]
[1729465451127,1.42569019,2753.6,2753.0,3.6200109]
[1729465451330,1.42569019,2753.6,2753.5,0.29058]
[1729465452039,4.63349019,2753.6,2753.2,0.2906]
[1729465452338,1.42569019,2753.4,2753.0,1.8823109]
[1729465452833,1.42569019,2753.4,2753.3,0.2906]
[1729465454329,1.42569019,2753.4,2753.0,1.8823109]
[1729465454528,1.42569019,2753.4,2753.3,0.2906]
[1729465454932,1.42569019,2753.4,2753.0,1.8823109]
[1729465455337,1.42569019,2753.4,2753.2,0.2906]
[1729465455938,3.32513549,2753.4,2753.2,0.2906]
[1729465456136,1.42569019,2753.3,2753.2,0.2906]
[1729465456832,1.42569019,2753.3,2752.7,1.6661]
[1729465457035,3.4766,2753.2,2753.0,0.29062]
[1729465457230,3.4766,2753.2,2752.7,1.6661]
[1729465457231,4.90229019,2753.2,2752.7,1.6661]
[1729465457432,4.90229019,2753.2,2753.1,0.29062]
[1729465458232,4.90229019,2753.2,2752.9,0.29063]
[1729465458438,4.90229019,2753.2,2752.7,1.6661]
[1729465458638,4.90229019,2753.2,2753.1,0.29062]
[1729465459233,4.90229019,2753.2,2753.0,0.29063]
[1729465459435,4.90229019,2753.2,2752.7,1.6661]
[1729465459635,4.90229019,2753.2,2753.1,0.29062]
[1729465459833,4.90229019,2753.2,2753.0,0.29063]
[1729465460338,3.4766,2753.2,2753.0,0.29062]
[1729465460543,3.76721,2753.2,2752.6,5.10231917]
[1729465460851,3.76721,2753.2,2752.9,0.29064]
[1729465460852,1.42569019,2753.1,2752.9,0.29064]
[1729465461543,1.42569019,2753.1,2752.7,0.11362739]
[1729465461735,1.71631019,2753.1,2752.8,0.29065]
[1729465462240,1.42569019,2753.0,2752.9,0.29064]
[1729465462442,1.42569019,2753.0,2752.8,0.29065]
[1729465463242,1.42569019,2753.0,2752.7,0.11362739]
[1729465463440,0.29065,2752.8,2752.7,0.11362739]
[1729465463748,3.2078,2752.8,2752.0,3.2078]
[1729465464049,1.42688546,2752.4,2752.0,3.2078]
[1729465464246,3.06018546,2752.3,2752.0,3.2078]
[1729465464546,0.29072,2752.2,2752.0,3.2078]
[1729465464751,3.06018546,2752.3,2752.0,3.2078]
[1729465464939,0.29072,2752.2,2752.0,3.2078]
[1729465465246,3.6336,2752.2,2751.7,3.2078]
[1729465465443,0.29073,2752.2,2751.7,3.49856]
[1729465465643,4.95963076,2752.3,2751.7,3.49856]
[1729465465644,0.29073,2752.1,2751.7,3.49856]
[1729465466351,0.29073,2752.1,2751.7,3.2078]
[1729465466652,1.42688546,2752.2,2751.7,3.2078]
[1729465466944,0.29075,2751.9,2751.7,3.2078]
[1729465467245,0.29075,2751.9,2751.1,2.66990368]
[1729465467246,4.8494,2751.8,2751.1,5.87770368]
[1729465467549,0.29078,2751.6,2751.2,0.29082]
[1729465467750,0.29078,2751.6,2751.1,6.16853368]
[1729465468247,0.2908,2751.5,2751.1,6.16853368]
[1729465468847,0.2908,2751.5,2751.1,5.87770368]
[1729465469852,0.2908,2751.4,2751.1,5.87770368]
[1729465470056,3.2078,2751.5,2751.1,0.93880368]
[1729465470350,3.49862,2751.2,2751.1,0.93880368]
[1729465471149,3.49862,2751.2,2750.5,0.29089]
[1729465471150,0.29086,2750.9,2750.4,3.2078]
[1729465471347,0.29086,2750.9,2750.3,0.29091]
[1729465471348,3.3588,2751.1,2750.3,0.15637985]
[1729465471558,0.29086,2750.9,2750.2,5.3168]
[1729465471758,3.49866,2750.9,2750.3,0.29091]
[1729465471944,0.29086,2750.8,2750.3,0.29091]
[1729465472249,3.2078,2750.9,2750.2,3.5759]
[1729465472450,3.2078,2750.9,2750.1,3.2078]
[1729465472650,3.2078,2750.9,2750.2,0.29092]
[1729465472651,0.29088,2750.7,2750.2,0.29092]
[1729465472953,0.29083,2751.1,2750.6,0.29088]
[1729465473154,0.29083,2751.1,2750.5,0.29088]
[1729465473349,3.2078,2750.9,2750.1,3.2078]
[1729465473554,1.7977,2750.8,2750.1,3.2078]
[1729465473753,1.7977,2750.8,2749.9,0.88383243]
[1729465474053,3.2078,2751.2,2750.4,3.2078]
[1729465474356,1.7977,2751.4,2750.5,5.1896]
[1729465474650,1.7977,2751.4,2751.0,0.29084]
[1729465474851,1.7977,2751.4,2751.1,0.29083]
[1729465475055,1.7977,2751.4,2750.7,3.2078]
[1729465475257,1.7977,2751.4,2751.0,0.29084]
[1729465475455,3.0278,2751.5,2750.7,3.2078]
[1729465475660,3.32633076,2751.8,2751.6,0.29077]
[1729465475860,3.32633076,2751.8,2751.7,0.29077]
[1729465476956,3.32402928,2752.3,2752.0,0.29074]
[1729465477168,3.32402928,2752.3,2752.0,3.49854]
[1729465478353,4.08955061,2752.7,2752.1,3.6336]
[1729465478354,3.79889061,2752.7,2752.1,3.6336]
[1729465478554,3.79889061,2752.7,2752.3,3.4985]
[1729465479057,3.79889061,2752.7,2752.3,7.1321]
[1729465479258,1.7818,2753.3,2753.0,0.29062]
[1729465479948,1.7818,2753.3,2752.6,3.2078]
[1729465479949,3.632,2753.2,2752.6,3.2078]
[1729465480152,0.29063,2753.0,2752.6,0.29067]
[1729465480460,3.2078,2753.0,2752.4,0.29069]
[1729465480653,0.29065,2752.9,2752.4,0.29069]
[1729465480956,3.2078,2753.0,2752.2,1.6752]
[1729465481268,0.29066,2752.8,2752.3,0.2907]
[1729465481970,3.4471,2752.9,2752.5,0.29068]
[1729465483269,3.4471,2752.9,2752.2,1.6752]
[1729465483270,3.4471,2752.9,2752.2,4.883]
[1729465483465,3.2078,2753.0,2752.2,4.883]
[1729465483663,3.2078,2753.0,2752.7,0.29066]
[1729465483873,3.2078,2753.0,2752.2,4.883]
[1729465484071,3.2078,2753.0,2752.7,0.29066]
[1729465484869,3.2078,2753.0,2752.2,4.883]
[1729465485175,3.2078,2753.0,2752.6,0.29067]
[1729465485569,3.2078,2753.0,2752.2,4.883]
[1729465485776,3.49843,2753.0,2752.4,0.29069]
[1729465486477,3.2078,2753.0,2752.2,4.883]
[1729465486770,3.2078,2752.7,2751.6,3.2078]